fUST/lending_fUST_20240227
["ID","MTS","AMOUNT","RATE_DAILY","PERIOD"]
[315396518,1709009444612,-521.93,0.00019726,2]
[315396519,1709009444621,-1100.16,0.00019726,2]
[315396520,1709009444630,-500.0,0.00019726,2]
[315396521,1709009444639,-500.0,0.00019726,2]
[315396522,1709009444648,-235.52195681,0.00019726,2]
[315396523,1709009444656,-1715.67,0.00019726,2]
[315396524,1709009444665,-500.0,0.00019726,2]
[315396525,1709009444675,-500.0,0.00019726,2]
[315396526,1709009444684,-1409.33,0.00019726,2]
[315396527,1709009444694,-379.01528578,0.00019726,2]
[315396528,1709009444704,-500.0,0.00019726,2]
[315396529,1709009444712,-379.90449438,0.00019726,2]
[315396530,1709009444722,-500.0,0.00019726,2]
[315396531,1709009444730,-500.0,0.00019726,2]
[315396532,1709009444739,-500.0,0.00019726,2]
[315396533,1709009444749,-500.0,0.00019726,2]
[315396534,1709009444758,-551.28665408,0.00019726,2]
[315396535,1709009444766,-500.0,0.00019726,2]
[315396536,1709009444775,-500.0,0.00019726,2]
[315396537,1709009444784,-14414.26,0.00019726,2]
[315396538,1709009444793,-500.0,0.00019726,2]
[315396539,1709009444802,-1106.85,0.00019726,2]
[315396540,1709009444812,-560.27723157,0.00019726,2]
[315396541,1709009444823,-504.27548558,0.00019726,2]
[315396542,1709009444831,-1501.65,0.00019726,2]
[315396543,1709009444840,-1321.38,0.00019726,2]
[315396544,1709009444849,-500.0,0.00019726,2]
[315396545,1709009444860,-500.0,0.00019726,2]
[315396546,1709009444869,-7714.86,0.00019726,2]
[315396547,1709009444878,-2963.25,0.00019726,2]
[315396548,1709009444887,-726.24,0.00019726,2]
[315396549,1709009444897,-714.93,0.00019726,2]
[315396550,1709009444908,-317.207108,0.00019726,2]
[315396551,1709009444917,-503.62709028,0.00019726,2]
[315396552,1709009444927,-500.0,0.00019726,2]
[315396553,1709009444935,-595.39798691,0.00019726,2]
[315396554,1709009444944,-896.06,0.00019726,2]
[315396555,1709009444953,-507.6639879,0.00019726,2]
[315396556,1709009444962,-763.47,0.00019726,2]
[315396557,1709009444971,-1053.12,0.00019726,2]
[315396558,1709009444981,-500.0,0.00019726,2]
[315396559,1709009444990,-500.0,0.00019726,2]
[315396560,1709009445001,-500.0,0.00019726,2]
[315396561,1709009445010,-500.0,0.00019726,2]
[315396562,1709009445018,-503.18608457,0.00019726,2]
[315396563,1709009445027,-537.44,0.00019726,2]
[315396564,1709009445036,-500.0,0.00019726,2]
[315396565,1709009445045,-501.52053868,0.00019726,2]
[315396566,1709009445054,-500.0,0.00019726,2]
[315396567,1709009445063,-14656.76,0.00019726,2]
[315396568,1709009445073,-500.0,0.00019726,2]
[315396569,1709009445082,-500.0,0.00019726,2]
[315396570,1709009445091,-1985.35,0.00019726,2]
[315396571,1709009445100,-5674.31,0.00019726,2]
[315396572,1709009445110,-503.19982376,0.00019726,2]
[315396573,1709009445210,-500.0,0.00019726,2]
[315396575,1709009445221,-1212.6,0.00019726,2]
[315396577,1709009445231,-2855.21,0.00019726,2]
[315396578,1709009445240,-500.0,0.00019726,2]
[315396579,1709009445251,-500.0,0.00019726,2]
[315396581,1709009445261,-500.0,0.00019726,2]
[315396583,1709009445271,-500.0,0.00019726,2]
[315396585,1709009445280,-500.0,0.00019726,2]
[315396588,1709009445290,-541.7,0.00019726,2]
[315396589,1709009445299,-641.65,0.00019726,2]
[315396592,1709009445308,-2226.58,0.00019726,2]
[315396594,1709009445318,-2975.15,0.00019726,2]
[315396596,1709009445327,-1960.4,0.00019726,2]
[315396597,1709009445336,-1565.15,0.00019726,2]
[315396600,1709009445346,-1538.88,0.00019726,2]
[315396602,1709009445355,-500.0,0.00019726,2]
[315396603,1709009445364,-2233.77,0.00019726,2]
[315396605,1709009445373,-500.0,0.00019726,2]
[315396607,1709009445383,-1159.44,0.00019726,2]
[315396609,1709009445392,-503.97375337,0.00019726,2]
[315396611,1709009445401,-153.0,0.00019836,2]
[315396613,1709009445411,-306.0,0.00019918,2]
[315396615,1709009445420,-506.9,0.00019998,2]
[315396617,1709009445430,-506.9,0.00019998,2]
[315396620,1709009445439,-500.0,0.00019998,2]
[315396622,1709009445449,-500.0,0.00019998,2]
[315396624,1709009445459,-500.0,0.00019999,2]
[315396626,1709009445469,-506.9,0.00019999,2]
[315396628,1709009445479,-500.0,0.00019999,2]
[315396630,1709009445488,-505.22836181,0.0002,2]
[315396632,1709009445497,-500.0,0.0002,2]
[315396634,1709009445507,-637.03,0.0002,2]
[315396636,1709009445516,-1060.81,0.0002,2]
[315396638,1709009445525,-500.0,0.0002,2]
[315396641,1709009445534,-331.17941528,0.0002,2]
[315396644,1709009445543,-500.0,0.0002,2]
[315396646,1709009445552,-522.6772101,0.0002,2]
[315396650,1709009445561,-594.47,0.0002,2]
[315396653,1709009445570,-1572.0,0.0002,2]
[315396655,1709009445579,-500.0,0.0002,2]
[315396657,1709009445588,-543.72,0.0002,2]
[315396659,1709009445597,-500.0,0.0002,2]
[315396662,1709009445607,-2517.78,0.0002,2]
[315396663,1709009445616,-1007.43,0.0002,2]
[315396666,1709009445625,-1663.07,0.0002,2]
[315396668,1709009445634,-500.0,0.0002,2]
[315396670,1709009445643,-500.0,0.0002,2]
[315396672,1709009445652,-301.86451415,0.0002,2]
[315396674,1709009445660,-500.0,0.0002,2]
[315396676,1709009445669,-521.93,0.0002,2]
[315396678,1709009445678,-1100.16,0.0002,2]
[315396680,1709009445687,-500.0,0.0002,2]
[315396681,1709009445697,-151.69718814,0.0002,2]
[315396684,1709009445707,-500.0,0.0002,2]
[315396686,1709009445716,-1715.67,0.0002,2]
[315396688,1709009445725,-500.0,0.0002,2]
[315396690,1709009445734,-500.0,0.0002,2]
[315396692,1709009445743,-1409.33,0.0002,2]
[315396694,1709009445753,-200.0,0.0002,2]
[315396696,1709009445762,-500.0,0.0002,2]
[315396698,1709009445771,-500.0,0.0002,2]
[315396699,1709009445780,-500.0,0.0002,2]
[315396701,1709009445790,-602.67375131,0.0002,2]
[315396702,1709009445799,-500.10196764,0.0002,2]
[315396704,1709009445809,-14414.26,0.0002,2]
[315396706,1709009445818,-500.0,0.0002,2]
[315396707,1709009445828,-1106.85,0.0002,2]
[315396708,1709009445838,-1501.65,0.0002,2]
[315396709,1709009445847,-1321.38,0.0002,2]
[315396710,1709009445856,-500.0,0.0002,2]
[315396711,1709009445866,-500.0,0.0002,2]
[315396712,1709009445875,-7714.86,0.0002,2]
[315396713,1709009445884,-2963.25,0.0002,2]
[315396714,1709009445894,-726.24,0.0002,2]
[315396715,1709009445903,-714.93,0.0002,2]
[315396716,1709009445914,-500.0,0.0002,2]
[315396718,1709009445923,-896.06,0.0002,2]
[315396719,1709009445932,-763.47,0.0002,2]
[315396720,1709009445941,-1053.12,0.0002,2]
[315396721,1709009445950,-500.0,0.0002,2]
[315396722,1709009445959,-500.0,0.0002,2]
[315396723,1709009445968,-500.0,0.0002,2]
[315396725,1709009445978,-537.44,0.0002,2]
[315396727,1709009445987,-255.55957885,0.0002,2]
[315396728,1709009445996,-14656.76,0.0002,2]
[315396729,1709009446006,-500.0,0.0002,2]
[315396730,1709009446014,-500.0,0.0002,2]
[315396731,1709009446024,-1985.35,0.0002,2]
[315396732,1709009446033,-5674.31,0.0002,2]
[315396733,1709009446042,-1212.6,0.0002,2]
[315396734,1709009446050,-500.0,0.0002,2]
[315396735,1709009446059,-2855.21,0.0002,2]
[315396736,1709009446068,-500.0,0.0002,2]
[315396737,1709009446078,-500.0,0.0002,2]
[315396738,1709009446087,-500.0,0.0002,2]
[315396739,1709009446097,-500.0,0.0002,2]
[315396740,1709009446107,-403.67154212,0.0002,2]
[315396741,1709009446116,-541.7,0.0002,2]
[315396742,1709009446126,-641.65,0.0002,2]
[315396743,1709009446135,-2226.58,0.0002,2]
[315396744,1709009446144,-2975.15,0.0002,2]
[315396745,1709009446153,-1960.4,0.0002,2]
[315396746,1709009446163,-1565.15,0.0002,2]
[315396747,1709009446172,-1538.88,0.0002,2]
[315396748,1709009446181,-500.0,0.0002,2]
[315396749,1709009446191,-2233.77,0.0002,2]
[315396751,1709009446199,-500.0,0.0002,2]
[315396752,1709009446208,-1159.44,0.0002,2]
[315396753,1709009446218,-581.11619843,0.00020037,2]
[315396755,1709009446228,-234.0976926,0.00020055,2]
[315396756,1709009446237,-306.0,0.00020055,2]
[315396757,1709009446246,-153.7606601,0.00020055,2]
[315396758,1709009446256,-228.7237367,0.00020055,2]
[315396759,1709009446265,-153.0,0.00020055,2]
[315396760,1709009446275,-153.0,0.00020055,2]
[315396761,1709009446283,-153.0,0.00020055,2]
[315396762,1709009446293,-166.666666,0.00020076,2]
[315396763,1709009446302,-175.5,0.000201,2]
[315396764,1709009446311,-506.9,0.00020129,2]
[315396765,1709009446320,-284.73199581,0.00020129,2]
[315396766,1709009446330,-1640.78582248,0.00020173,2]
[315396767,1709009446339,-153.0,0.00020192,2]
[315396768,1709009446348,-1640.78582248,0.00020254,2]
[315396769,1709009446357,-506.9,0.00020272,2]
[315396770,1709009446366,-506.9,0.00020272,2]
[315396771,1709009446376,-506.9,0.00020272,2]
[315396772,1709009446385,-418.81192967,0.00020272,2]
[315396773,1709009446394,-500.0,0.00020273,2]
[315396774,1709009446404,-500.0,0.00020273,2]
[315396775,1709009446414,-637.03,0.00020273,2]
[315396777,1709009446423,-1060.81,0.00020273,2]
[315396779,1709009446432,-500.0,0.00020273,2]
[315396780,1709009446441,-594.47,0.00020273,2]
[315396782,1709009446450,-500.0,0.00020273,2]
[315396783,1709009446459,-543.72,0.00020273,2]
[315396785,1709009446468,-2517.78,0.00020273,2]
[315396786,1709009446477,-1007.43,0.00020273,2]
[315396787,1709009446486,-1663.07,0.00020273,2]
[315396789,1709009446495,-500.0,0.00020273,2]
[315396790,1709009446505,-500.0,0.00020273,2]
[315396791,1709009446514,-521.93,0.00020273,2]
[315396793,1709009446523,-1100.16,0.00020273,2]
[315396795,1709009446533,-500.0,0.00020273,2]
[315396796,1709009446542,-1715.67,0.00020273,2]
[315396798,1709009446551,-500.0,0.00020273,2]
[315396799,1709009446560,-500.0,0.00020273,2]
[315396801,1709009446569,-1409.33,0.00020273,2]
[315396802,1709009446578,-500.0,0.00020273,2]
[315396803,1709009446588,-500.0,0.00020273,2]
[315396805,1709009446597,-14414.26,0.00020273,2]
[315396807,1709009446606,-500.0,0.00020273,2]
[315396809,1709009446616,-1106.85,0.00020273,2]
[315396811,1709009446625,-1501.65,0.00020273,2]
[315396813,1709009446634,-1321.38,0.00020273,2]
[315396815,1709009446643,-502.56998248,0.00020273,2]
[315396817,1709009446655,-500.0,0.00020273,2]
[315396819,1709009446664,-7714.86,0.00020273,2]
[315396821,1709009446673,-2963.25,0.00020273,2]
[315396823,1709009446682,-726.24,0.00020273,2]
[315396826,1709009446691,-714.93,0.00020273,2]
[315396828,1709009446701,-615.15729319,0.00020273,2]
[315396829,1709009446710,-896.06,0.00020273,2]
[315396831,1709009446719,-763.47,0.00020273,2]
[315396833,1709009446728,-1053.12,0.00020273,2]
[315396834,1709009446738,-500.0,0.00020273,2]
[315396835,1709009446746,-500.0,0.00020273,2]
[315396836,1709009446756,-500.0,0.00020273,2]
[315396837,1709009446765,-537.44,0.00020273,2]
[315396838,1709009446774,-500.0,0.00020273,2]
[315396839,1709009446783,-14656.76,0.00020273,2]
[315396840,1709009446791,-601.93171131,0.00020273,2]
[315396841,1709009446801,-1985.35,0.00020273,2]
[315396842,1709009446809,-5674.31,0.00020273,2]
[315396843,1709009446822,-1212.6,0.00020273,2]
[315396844,1709009446831,-632.64477132,0.00020273,2]
[315396845,1709009446840,-2855.21,0.00020273,2]
[315396846,1709009446850,-500.0,0.00020273,2]
[315396847,1709009446860,-500.0,0.00020273,2]
[315396848,1709009446868,-500.0,0.00020273,2]
[315396849,1709009446877,-500.0,0.00020273,2]
[315396850,1709009446886,-541.7,0.00020273,2]
[315396851,1709009446895,-641.65,0.00020273,2]
[315396852,1709009446905,-2226.58,0.00020273,2]
[315396853,1709009446914,-2975.15,0.00020273,2]
[315396854,1709009446924,-1960.4,0.00020273,2]
[315396855,1709009446934,-1565.15,0.00020273,2]
[315396856,1709009446943,-1538.88,0.00020273,2]
[315396857,1709009446952,-500.0,0.00020273,2]
[315396858,1709009446960,-2233.77,0.00020273,2]
[315396859,1709009446969,-500.0,0.00020273,2]
[315396860,1709009446978,-1159.44,0.00020273,2]
[315396861,1709009446987,-1213.57750513,0.00020328,2]
[315396862,1709009446996,-1213.57750513,0.00020328,2]
[315396863,1709009447006,-1640.78582248,0.00020335,2]
[315396864,1709009447015,-581.11619843,0.00020379,2]
[315396865,1709009447024,-1640.78582248,0.00020415,2]
[315396866,1709009447033,-506.9,0.0002049,2]
[315396867,1709009447041,-506.9,0.0002049,2]
[315396868,1709009447050,-1640.78582248,0.00020496,2]
[315396869,1709009447060,-166.666666,0.00020524,2]
[315396870,1709009447069,-292.24516176,0.00020545,2]
[315396871,1709009447080,-747.72914726,0.00020546,2]
[315396872,1709009447089,-958.54350043,0.00020546,2]
[315396873,1709009447098,-506.9,0.00020546,2]
[315396874,1709009447108,-506.9,0.00020546,2]
[315396875,1709009447117,-506.9,0.00020546,2]
[315396876,1709009447126,-506.9,0.00020546,2]
[315396877,1709009447135,-506.9,0.00020546,2]
[315396878,1709009447144,-506.9,0.00020546,2]
[315396879,1709009447153,-507.12,0.00020546,2]
[315396880,1709009447171,-500.0,0.00020547,2]
[315396881,1709009447185,-500.0,0.00020547,2]
[315396882,1709009447195,-637.03,0.00020547,2]
[315396883,1709009447204,-1060.81,0.00020547,2]
[315396884,1709009447214,-500.0,0.00020547,2]
[315396885,1709009447223,-594.47,0.00020547,2]
[315396886,1709009447233,-500.0,0.00020547,2]
[315396887,1709009447243,-543.72,0.00020547,2]
[315396888,1709009447252,-2517.78,0.00020547,2]
[315396889,1709009447262,-6073.11175297,0.00020547,3]
[315396890,1709009447271,-6073.11175297,0.00020547,3]
[315396891,1709009447281,-6073.11175297,0.00020547,3]
[315396892,1709009447291,-6073.11175297,0.00020547,3]
[315396893,1709009447300,-6073.11175297,0.00020547,3]
[315396894,1709009447310,-6073.11175297,0.00020547,3]
[315396895,1709009447320,-6073.11175297,0.00020547,3]
[315396896,1709009447330,-6073.11175297,0.00020547,3]
[315396897,1709009447339,-6073.11175297,0.00020547,3]
[315396898,1709009447349,-6073.11075297,0.00020547,3]
[315396899,1709009447358,-1007.43,0.00020547,2]
[315396900,1709009447368,-9602.6665649,0.00020547,3]
[315396901,1709009447377,-1663.07,0.00020547,2]
[315396902,1709009447387,-500.0,0.00020547,2]
[315396903,1709009447396,-500.0,0.00020547,2]
[315396904,1709009447406,-521.93,0.00020547,2]
[315396905,1709009447415,-1100.16,0.00020547,2]
[315396906,1709009447425,-500.0,0.00020547,2]
[315396907,1709009447435,-1715.67,0.00020547,2]
[315396908,1709009447444,-567.61733427,0.00020547,2]
[315396909,1709009447453,-500.0,0.00020547,2]
[315396910,1709009447463,-1409.33,0.00020547,2]
[315396911,1709009447472,-500.0,0.00020547,2]
[315396912,1709009447482,-500.0,0.00020547,2]
[315396913,1709009447491,-14414.26,0.00020547,2]
[315396914,1709009447627,-500.0,0.00020547,2]
[315396915,1709009447637,-1106.85,0.00020547,2]
[315396916,1709009447647,-1501.65,0.00020547,2]
[315396917,1709009447657,-1321.38,0.00020547,2]
[315396918,1709009447667,-500.0,0.00020547,2]
[315396919,1709009447676,-7714.86,0.00020547,2]
[315396920,1709009447686,-2963.25,0.00020547,2]
[315396921,1709009447695,-726.24,0.00020547,2]
[315396922,1709009447705,-714.93,0.00020547,2]
[315396923,1709009447714,-896.06,0.00020547,2]
[315396924,1709009447723,-763.47,0.00020547,2]
[315396925,1709009447732,-1053.12,0.00020547,2]
[315396926,1709009447741,-500.0,0.00020547,2]
[315396927,1709009447750,-500.0,0.00020547,2]
[315396928,1709009447760,-500.0,0.00020547,2]
[315396929,1709009447768,-537.44,0.00020547,2]
[315396930,1709009447778,-500.0,0.00020547,2]
[315396931,1709009447787,-14656.76,0.00020547,2]
[315396932,1709009447796,-1985.35,0.00020547,2]
[315396933,1709009447806,-5674.31,0.00020547,2]
[315396934,1709009447816,-1212.6,0.00020547,2]
[315396935,1709009447826,-2855.21,0.00020547,2]
[315396936,1709009447838,-500.0,0.00020547,2]
[315396937,1709009447848,-500.0,0.00020547,2]
[315396938,1709009447857,-500.0,0.00020547,2]
[315396939,1709009447867,-500.0,0.00020547,2]
[315396940,1709009447878,-541.7,0.00020547,2]
[315396941,1709009447887,-641.65,0.00020547,2]
[315396942,1709009447896,-2226.58,0.00020547,2]
[315396943,1709009447906,-2975.15,0.00020547,2]
[315396944,1709009447916,-1960.4,0.00020547,2]
[315396945,1709009447926,-1565.15,0.00020547,2]
[315396946,1709009447936,-1538.88,0.00020547,2]
[315396947,1709009447945,-2233.77,0.00020547,2]
[315396948,1709009447954,-1159.44,0.00020547,2]
[315396949,1709009447963,-1640.78582248,0.00020577,2]
[315396950,1709009447972,-75402.60407784,0.0002058,2]
[315396951,1709009447985,-5000.0,0.00020657,5]
[315396952,1709009447994,-21243.5531631,0.00020657,3]
[315396953,1709009448004,-50000.0,0.00020657,3]
[315396954,1709009448014,-50000.0,0.00020657,3]
[315396955,1709009448023,-1890.35200458,0.00020657,3]
[315396956,1709009448297,-500.0,0.00019999,2]
[315396957,1709009448307,-500.0,0.00019999,2]
[315396958,1709009448317,-635.08739956,0.00019999,2]
[315396959,1709009448326,-500.0,0.00019999,2]
[315396960,1709009448335,-500.0,0.00019999,2]
[315396961,1709009448345,-500.0,0.00019999,2]
[315396962,1709009448354,-500.0,0.00019999,2]
[315396963,1709009448363,-500.0,0.00019999,2]
[315396964,1709009448373,-376.55444717,0.00019999,2]
[315396965,1709009448382,-500.0,0.00019999,2]
[315396966,1709009448391,-500.0,0.00019999,2]
[315396967,1709009448401,-500.0,0.00019999,2]
[315396968,1709009448410,-500.0,0.00019999,2]
[315396969,1709009448419,-16981.66315589,0.00020657,3]
[315396970,1709009448432,-15555.5659275,0.00020657,3]
[315396979,1709009588770,10000.0,0.000182,2]
[315396980,1709009598633,10000.0,0.000182,2]
[315396981,1709009607128,10000.0,0.000182,2]
[315396982,1709009615626,10000.0,0.000182,2]
[315396983,1709009621503,155.18622347,0.000182,2]
[315396984,1709009622364,10000.0,0.000182,2]
[315396986,1709009629991,10000.0,0.000182,2]
[315396987,1709009637506,155.18622347,0.000182,2]
[315396988,1709009637977,10000.0,0.000182,2]
[315396989,1709009644943,10000.0,0.000182,2]
[315396990,1709009647138,1155.03580404,0.000179,3]
[315396992,1709009651450,10000.0,0.000182,2]
[315396993,1709009657505,155.18622347,0.000182,2]
[315396994,1709009657968,10000.0,0.000182,2]
[315396995,1709009659450,155.37722923,0.000176,2]
[315396996,1709009665151,962.5298367,0.000179,3]
[315396998,1709009668749,6946.6,0.000182,2]
[315396999,1709009673521,155.18622347,0.000182,2]
[315397000,1709009681139,501.47804492,0.000179,3]
[315397001,1709009691783,155.18622347,0.000176,2]
[315397002,1709009699145,501.47804492,0.000179,3]
[315397003,1709009709559,155.18622347,0.000176,2]
[315397004,1709009721140,501.47804492,0.000179,3]
[315397005,1709009725538,155.18622347,0.000176,2]
[315397006,1709009741146,501.47804492,0.000179,3]
[315397007,1709009751159,155.18622347,0.000176,2]
[315397008,1709009757156,501.47804492,0.000179,3]
[315397009,1709009765162,155.18622347,0.000176,2]
[315397010,1709009771520,24900.0,0.00018153,2]
[315397011,1709009777153,501.47804492,0.000179,3]
[315397012,1709009783167,155.18622347,0.000176,2]
[315397014,1709009799165,501.47804492,0.000179,3]
[315397016,1709009815189,501.47804492,0.000179,3]
[315397018,1709009835176,501.47804492,0.000179,3]
[315397020,1709009857185,501.47804492,0.000179,3]
[315397023,1709009888725,501.47804492,0.000179,3]
[315397025,1709009904715,258.92052608,0.000179,3]
[315397026,1709010335702,214.107232,0.00018108,2]
[315397093,1709010632779,-300.0,0.00018231,2]
[315397095,1709010632789,-18908.4112076,0.00018232,2]
[315397097,1709010632802,-5991.5887924,0.00018232,2]
[315397099,1709010632812,-403.80094181,0.000188,2]
[315397101,1709010632822,-1591.62159516,0.00018899,2]
[315397103,1709010632831,-991.05739387,0.000189,2]
[315397105,1709010632842,-478.17689947,0.00019177,2]
[315397107,1709010632851,-1213.56535489,0.00019177,2]
[315397109,1709010632861,-500.0,0.00019177,2]
[315397111,1709010632870,-1213.57750513,0.00019177,2]
[315397112,1709010632879,-500.0,0.00019178,2]
[315397115,1709010632888,-500.0,0.00019178,2]
[315397117,1709010632897,-501.2600967,0.00019178,2]
[315397119,1709010632906,-500.0,0.00019178,2]
[315397121,1709010632915,-500.0,0.00019178,2]
[315397123,1709010632925,-501.56058228,0.00019178,2]
[315397125,1709010632934,-500.0,0.00019178,2]
[315397127,1709010632944,-500.79353495,0.00019178,2]
[315397129,1709010632954,-515.388153,0.00019178,2]
[315397131,1709010632964,-500.0,0.00019178,2]
[315397133,1709010632973,-542.79,0.00019178,2]
[315397135,1709010632982,-500.0,0.00019178,2]
[315397137,1709010632992,-284.73199581,0.00019178,2]
[315397139,1709010633001,-500.0,0.00019178,2]
[315397141,1709010633011,-500.0,0.00019178,2]
[315397143,1709010633021,-500.0,0.00019178,2]
[315397144,1709010633030,-500.0,0.00019178,2]
[315397146,1709010633039,-2011.06,0.00019178,2]
[315397148,1709010633048,-500.0,0.00019178,2]
[315397150,1709010633057,-500.0,0.00019178,2]
[315397152,1709010633066,-500.0,0.00019178,2]
[315397154,1709010633075,-500.0,0.00019178,2]
[315397156,1709010633084,-500.67029527,0.00019178,2]
[315397158,1709010633094,-500.0,0.00019178,2]
[315397160,1709010633103,-500.45944832,0.00019178,2]
[315397162,1709010633112,-500.0,0.00019178,2]
[315397164,1709010633121,-1217.51,0.00019178,2]
[315397166,1709010633130,-500.0,0.00019178,2]
[315397168,1709010633139,-1033.93,0.00019178,2]
[315397169,1709010633148,-592.5,0.00019178,2]
[315397171,1709010633158,-500.0,0.00019178,2]
[315397173,1709010633168,-500.0,0.00019178,2]
[315397175,1709010633177,-453.90931351,0.00019178,2]
[315397177,1709010633187,-560.27723157,0.00019178,2]
[315397179,1709010633197,-736.36,0.00019178,2]
[315397181,1709010633207,-736.36,0.00019178,2]
[315397183,1709010633217,-736.36,0.00019178,2]
[315397185,1709010633226,-736.36,0.00019178,2]
[315397187,1709010633237,-500.0,0.00019178,2]
[315397189,1709010633246,-500.0,0.00019178,2]
[315397191,1709010633255,-500.0,0.00019178,2]
[315397193,1709010633264,-500.0,0.00019178,2]
[315397195,1709010633273,-500.0,0.00019178,2]
[315397197,1709010633283,-500.0,0.00019178,2]
[315397199,1709010633292,-500.36408889,0.00019178,2]
[315397201,1709010633303,-500.0,0.00019178,2]
[315397203,1709010633312,-395.3420921,0.00019178,2]
[315397205,1709010633321,-500.0,0.00019178,2]
[315397207,1709010633330,-500.0,0.00019178,2]
[315397209,1709010633339,-500.0,0.00019178,2]
[315397211,1709010633348,-500.0,0.00019178,2]
[315397212,1709010633357,-2830.74,0.00019178,2]
[315397214,1709010633366,-500.0,0.00019178,2]
[315397216,1709010633375,-1094.46,0.00019178,2]
[315397218,1709010633385,-500.0,0.00019178,2]
[315397220,1709010633394,-500.0,0.00019178,2]
[315397222,1709010633404,-1804.89,0.00019178,2]
[315397224,1709010633413,-500.0,0.00019178,2]
[315397226,1709010633422,-500.0,0.00019178,2]
[315397228,1709010633432,-500.31919451,0.00019178,2]
[315397230,1709010633441,-500.0,0.00019178,2]
[315397232,1709010633450,-500.0,0.00019178,2]
[315397234,1709010633459,-515.66855619,0.00019178,2]
[315397236,1709010633469,-500.0,0.00019178,2]
[315397238,1709010633479,-500.0,0.00019178,2]
[315397240,1709010633489,-500.0,0.00019178,2]
[315397242,1709010633497,-500.0,0.00019178,2]
[315397244,1709010633506,-502.02734652,0.00019178,2]
[315397246,1709010633517,-503.19982376,0.00019178,2]
[315397248,1709010633526,-500.0,0.00019178,2]
[315397250,1709010633535,-500.0,0.00019178,2]
[315397252,1709010633544,-649.24851015,0.00019178,2]
[315397254,1709010633553,-500.0,0.00019178,2]
[315397256,1709010633563,-500.30722818,0.00019178,2]
[315397258,1709010633572,-500.0,0.00019178,2]
[315397260,1709010633581,-500.0,0.00019178,2]
[315397262,1709010633591,-1658.28,0.00019178,2]
[315397263,1709010633601,-501.07550028,0.00019178,2]
[315397265,1709010633610,-500.0,0.00019178,2]
[315397267,1709010633619,-500.0,0.00019178,2]
[315397269,1709010633629,-500.0,0.00019178,2]
[315397271,1709010633638,-500.0,0.00019178,2]
[315397273,1709010633648,-500.0,0.00019178,2]
[315397275,1709010633657,-500.0,0.00019178,2]
[315397277,1709010633667,-1388.35,0.00019178,2]
[315397279,1709010633676,-500.0,0.00019178,2]
[315397281,1709010633685,-500.0,0.00019178,2]
[315397283,1709010633694,-500.0,0.00019178,2]
[315397285,1709010633704,-173.72154512,0.00019178,2]
[315397287,1709010633713,-500.1468227,0.00019178,2]
[315397289,1709010633722,-500.0,0.00019178,2]
[315397291,1709010633731,-502.42303561,0.00019178,2]
[315397293,1709010633741,-354.10599002,0.00019178,2]
[315397295,1709010633750,-500.0,0.00019178,2]
[315397297,1709010633759,-1156.01,0.00019178,2]
[315397299,1709010633769,-151.0,0.00019178,2]